[Event "Early-Titled-Tuesday-Blitz-September-05-2023"]
[Site "Chess.com"]
[Date "2023.09.05"]
[Round "6"]
[White "chess123456s"]
[Black "only_strong_moves"]
[Result "0-1"]
[WhiteElo "2658"]
[BlackElo "2540"]
[TimeControl "180+1"]
[EndTime "9:07:16 PDT"]
[Termination "only_strong_moves won by checkmate"]

1. e4 {[%clk 0:03:00.9]} 1... e6 {[%clk 0:02:59.9]} 2. d4 {[%clk 0:02:58.8]}
2... d5 {[%clk 0:03:00]} 3. Bd3 {[%clk 0:02:59.1]} 3... c5 {[%clk 0:02:56.6]} 4.
exd5 {[%clk 0:02:59.3]} 4... Qxd5 {[%clk 0:02:55.6]} 5. Nc3 {[%clk 0:02:59.3]}
5... Qd8 {[%clk 0:02:52.1]} 6. Nf3 {[%clk 0:02:56.3]} 6... Nc6 {[%clk
0:02:48.2]} 7. dxc5 {[%clk 0:02:54.1]} 7... Bxc5 {[%clk 0:02:49.1]} 8. O-O
{[%clk 0:02:53.8]} 8... h6 {[%clk 0:02:38.1]} 9. Ne4 {[%clk 0:02:42.3]} 9... Be7
{[%clk 0:02:36.2]} 10. Bd2 {[%clk 0:02:39.8]} 10... Nf6 {[%clk 0:02:36.1]} 11.
Bc3 {[%clk 0:02:40.1]} 11... O-O {[%clk 0:02:35.7]} 12. Qe2 {[%clk 0:02:39]}
12... Nd5 {[%clk 0:02:33.7]} 13. Bd2 {[%clk 0:02:33.6]} 13... f5 {[%clk
0:02:33.5]} 14. Nc3 {[%clk 0:02:31.2]} 14... Ndb4 {[%clk 0:02:18.3]} 15. Rad1
{[%clk 0:01:59.4]} 15... Nxd3 {[%clk 0:02:17.5]} 16. cxd3 {[%clk 0:02:00.3]}
16... Bf6 {[%clk 0:02:04.7]} 17. Bf4 {[%clk 0:01:58.4]} 17... Nd4 {[%clk
0:01:54]} 18. Nxd4 {[%clk 0:01:56.6]} 18... Qxd4 {[%clk 0:01:54.9]} 19. Be3
{[%clk 0:01:53.7]} 19... Qd6 {[%clk 0:01:29.9]} 20. d4 {[%clk 0:01:53.1]} 20...
b6 {[%clk 0:01:28.4]} 21. Rfe1 {[%clk 0:01:39.7]} 21... Bb7 {[%clk 0:01:21]} 22.
Qc4 {[%clk 0:01:23.3]} 22... Rac8 {[%clk 0:01:12.4]} 23. Qb3 {[%clk 0:01:23]}
23... Rfe8 {[%clk 0:01:11.9]} 24. Nb5 {[%clk 0:01:13.8]} 24... Qd7 {[%clk
0:00:33.4]} 25. Bf4 {[%clk 0:01:05.7]} 25... Bd5 {[%clk 0:00:28.3]} 26. Qa4
{[%clk 0:00:32]} 26... Bc6 {[%clk 0:00:27.4]} 27. Qxa7 {[%clk 0:00:28.8]} 27...
Bxb5 {[%clk 0:00:27.2]} 28. Qxb6 {[%clk 0:00:28.9]} 28... Bc6 {[%clk 0:00:23.2]}
29. b3 {[%clk 0:00:22.8]} 29... Qd5 {[%clk 0:00:23.3]} 30. f3 {[%clk 0:00:20.7]}
30... Ra8 {[%clk 0:00:21.1]} 31. a4 {[%clk 0:00:20.2]} 31... Bd8 {[%clk
0:00:09.7]} 32. Bc7 {[%clk 0:00:14.5]} 32... Bxc7 {[%clk 0:00:08.4]} 33. Qxc7
{[%clk 0:00:15.4]} 33... Rac8 {[%clk 0:00:07.3]} 34. Qa7 {[%clk 0:00:15.1]}
34... Qxb3 {[%clk 0:00:07.2]} 35. Rb1 {[%clk 0:00:13.3]} 35... Qxa4 {[%clk
0:00:07]} 36. Qb6 {[%clk 0:00:09.5]} 36... Qc4 {[%clk 0:00:05]} 37. Rbc1 {[%clk
0:00:09.4]} 37... Qd5 {[%clk 0:00:05.2]} 38. Re5 {[%clk 0:00:09.6]} 38... Qd6
{[%clk 0:00:05.7]} 39. Rce1 {[%clk 0:00:09.8]} 39... Qc7 {[%clk 0:00:04.3]} 40.
Qc5 {[%clk 0:00:08.5]} 40... Bd7 {[%clk 0:00:03.5]} 41. Qb4 {[%clk 0:00:07.9]}
41... Qc4 {[%clk 0:00:03.6]} 42. Qd6 {[%clk 0:00:07.8]} 42... Qc6 {[%clk
0:00:03.3]} 43. Qb4 {[%clk 0:00:08]} 43... Kh7 {[%clk 0:00:03]} 44. h4 {[%clk
0:00:07.3]} 44... Rb8 {[%clk 0:00:02.3]} 45. Qd2 {[%clk 0:00:07.3]} 45... Rb5
{[%clk 0:00:02.9]} 46. R5e2 {[%clk 0:00:06.1]} 46... Rd5 {[%clk 0:00:03.1]} 47.
Qf4 {[%clk 0:00:06.6]} 47... Qd6 {[%clk 0:00:03.5]} 48. Qe3 {[%clk 0:00:05.3]}
48... Rxd4 {[%clk 0:00:03.8]} 49. h5 {[%clk 0:00:06.1]} 49... e5 {[%clk
0:00:04.1]} 50. Qb3 {[%clk 0:00:05.6]} 50... f4 {[%clk 0:00:04.2]} 51. Qf7
{[%clk 0:00:06.1]} 51... Rf8 {[%clk 0:00:03.9]} 52. Qb3 {[%clk 0:00:05.6]} 52...
Rd5 {[%clk 0:00:04.3]} 53. Qb7 {[%clk 0:00:05.4]} 53... Bc6 {[%clk 0:00:04.3]}
54. Qb6 {[%clk 0:00:04.8]} 54... Rf5 {[%clk 0:00:04.5]} 55. Qa7 {[%clk
0:00:04.6]} 55... Rxh5 {[%clk 0:00:04.5]} 56. Rc2 {[%clk 0:00:04.8]} 56... Rg5
{[%clk 0:00:04.5]} 57. Rec1 {[%clk 0:00:05.1]} 57... Qg6 {[%clk 0:00:04.7]} 58.
Qf2 {[%clk 0:00:04.4]} 58... Bd7 {[%clk 0:00:04.2]} 59. Rc7 {[%clk 0:00:04.7]}
59... Bh3 {[%clk 0:00:04.3]} 60. R1c2 {[%clk 0:00:04.2]} 60... Rxg2+ {[%clk
0:00:04.7]} 61. Qxg2 {[%clk 0:00:04.4]} 61... Bxg2 {[%clk 0:00:05.6]} 62. Rxg2
{[%clk 0:00:05.3]} 62... Rd1+ {[%clk 0:00:06]} 63. Kh2 {[%clk 0:00:05.8]} 63...
Qh5# {[%clk 0:00:05.9]} 0-1

[Event "Early-Titled-Tuesday-Blitz-September-05-2023"]
[Site "Chess.com"]
[Date "2023.09.05"]
[Round "6"]
[White "Truequitos"]
[Black "Obito24"]
[Result "0-1"]
[WhiteElo "2422"]
[BlackElo "2678"]
[TimeControl "180+1"]
[EndTime "9:07:17 PDT"]
[Termination "Obito24 won on time"]

1. e4 {[%clk 0:03:00.9]} 1... c5 {[%clk 0:02:42.2]} 2. Nc3 {[%clk 0:02:59.8]}
2... Nc6 {[%clk 0:02:41.8]} 3. Bb5 {[%clk 0:02:59.9]} 3... Nd4 {[%clk
0:02:39.8]} 4. Nf3 {[%clk 0:02:59.7]} 4... e6 {[%clk 0:02:40]} 5. O-O {[%clk
0:02:58.8]} 5... a6 {[%clk 0:02:40.5]} 6. Bd3 {[%clk 0:02:58.4]} 6... Nc6 {[%clk
0:02:41.1]} 7. e5 {[%clk 0:02:52.1]} 7... d5 {[%clk 0:02:41.3]} 8. exd6 {[%clk
0:02:50.7]} 8... Bxd6 {[%clk 0:02:41.7]} 9. Ne4 {[%clk 0:02:47.6]} 9... Nf6
{[%clk 0:02:31]} 10. Re1 {[%clk 0:02:33.3]} 10... O-O {[%clk 0:02:29.4]} 11.
Nxf6+ {[%clk 0:02:30.6]} 11... Qxf6 {[%clk 0:02:28.2]} 12. Be4 {[%clk
0:02:31.2]} 12... h6 {[%clk 0:01:25]} 13. d3 {[%clk 0:02:29.3]} 13... Bd7 {[%clk
0:01:25.2]} 14. c3 {[%clk 0:02:19.6]} 14... Rad8 {[%clk 0:01:17.2]} 15. Qe2
{[%clk 0:02:17.8]} 15... b5 {[%clk 0:01:10.6]} 16. a4 {[%clk 0:02:16.5]} 16...
b4 {[%clk 0:01:10.8]} 17. Bd2 {[%clk 0:02:08.8]} 17... Bf4 {[%clk 0:01:11.3]}
18. Rac1 {[%clk 0:02:01.2]} 18... Bxd2 {[%clk 0:01:05.7]} 19. Qxd2 {[%clk
0:01:46.7]} 19... Rb8 {[%clk 0:01:05.5]} 20. Qe3 {[%clk 0:01:43.9]} 20... bxc3
{[%clk 0:00:56.7]} 21. bxc3 {[%clk 0:01:44.8]} 21... Na5 {[%clk 0:00:52.3]} 22.
Nd2 {[%clk 0:01:34.7]} 22... Qg5 {[%clk 0:00:47.9]} 23. f4 {[%clk 0:01:28.9]}
23... Qe7 {[%clk 0:00:47.6]} 24. Bf3 {[%clk 0:01:23.2]} 24... Nb3 {[%clk
0:00:37.4]} 25. Nxb3 {[%clk 0:01:19]} 25... Rxb3 {[%clk 0:00:38.3]} 26. f5
{[%clk 0:01:12]} 26... Bxa4 {[%clk 0:00:31.6]} 27. fxe6 {[%clk 0:01:07.7]} 27...
fxe6 {[%clk 0:00:31.5]} 28. Bd5 {[%clk 0:00:59.1]} 28... Rb6 {[%clk 0:00:32.1]}
29. Bxe6+ {[%clk 0:00:52.1]} 29... Kh8 {[%clk 0:00:32.8]} 30. Bc4 {[%clk
0:00:45.4]} 30... Qxe3+ {[%clk 0:00:31.7]} 31. Rxe3 {[%clk 0:00:46.3]} 31... Bb5
{[%clk 0:00:30.9]} 32. Bd5 {[%clk 0:00:43.3]} 32... Rd6 {[%clk 0:00:24.8]} 33.
Re5 {[%clk 0:00:27.5]} 33... Bxd3 {[%clk 0:00:23.3]} 34. Rce1 {[%clk 0:00:23.6]}
34... a5 {[%clk 0:00:17.9]} 35. Bf3 {[%clk 0:00:21.4]} 35... Rc8 {[%clk
0:00:08.5]} 36. Re8+ {[%clk 0:00:18.2]} 36... Rxe8 {[%clk 0:00:08]} 37. Rxe8+
{[%clk 0:00:18.9]} 37... Kh7 {[%clk 0:00:08.6]} 38. Ra8 {[%clk 0:00:19.5]} 38...
Ra6 {[%clk 0:00:03]} 39. Be4+ {[%clk 0:00:19.3]} 39... g6 {[%clk 0:00:03.3]} 40.
Rxa6 {[%clk 0:00:15.1]} 40... Bxa6 {[%clk 0:00:03.6]} 41. Bd5 {[%clk 0:00:15.2]}
41... Kg7 {[%clk 0:00:03.9]} 42. Kf2 {[%clk 0:00:14.9]} 42... Kf6 {[%clk
0:00:04.5]} 43. Ke3 {[%clk 0:00:14.7]} 43... Ke5 {[%clk 0:00:05.1]} 44. Bf7
{[%clk 0:00:14.6]} 44... g5 {[%clk 0:00:05.7]} 45. g3 {[%clk 0:00:13.7]} 45...
a4 {[%clk 0:00:05.8]} 46. Ba2 {[%clk 0:00:11.8]} 46... a3 {[%clk 0:00:06.3]} 47.
h4 {[%clk 0:00:10]} 47... Bb7 {[%clk 0:00:02.6]} 48. hxg5 {[%clk 0:00:08.8]}
48... hxg5 {[%clk 0:00:03.5]} 49. Kd2 {[%clk 0:00:09.1]} 49... Bd5 {[%clk
0:00:03.7]} 50. c4 {[%clk 0:00:07.6]} 50... Bc6 {[%clk 0:00:03.6]} 51. Kc3
{[%clk 0:00:08.2]} 51... Ke4 {[%clk 0:00:03.4]} 52. Kb3 {[%clk 0:00:08]} 52...
Kf3 {[%clk 0:00:04.1]} 53. Kxa3 {[%clk 0:00:08.5]} 53... Kxg3 {[%clk 0:00:04.8]}
54. Kb3 {[%clk 0:00:07.9]} 54... Kf2 {[%clk 0:00:05]} 55. Bb1 {[%clk 0:00:04.3]}
55... g4 {[%clk 0:00:05.6]} 56. Bf5 {[%clk 0:00:04.9]} 56... g3 {[%clk
0:00:06.4]} 57. Bh3 {[%clk 0:00:05.4]} 57... Bg2 {[%clk 0:00:05.8]} 58. Bf5
{[%clk 0:00:04.7]} 58... Bf1 {[%clk 0:00:06.5]} 59. Be4 {[%clk 0:00:04]} 59...
Bd3 {[%clk 0:00:07]} 60. Bd5 {[%clk 0:00:03]} 60... Be2 {[%clk 0:00:05.8]} 61.
Kc3 {[%clk 0:00:02.6]} 61... Bf3 {[%clk 0:00:06.2]} 0-1

[Event "Early-Titled-Tuesday-Blitz-September-05-2023"]
[Site "Chess.com"]
[Date "2023.09.05"]
[Round "6"]
[White "ExchangeAB"]
[Black "vedantgoswami"]
[Result "0-1"]
[WhiteElo "2424"]
[BlackElo "2320"]
[TimeControl "180+1"]
[EndTime "9:07:24 PDT"]
[Termination "vedantgoswami won by resignation"]

1. d4 {[%clk 0:03:00.9]} 1... Nf6 {[%clk 0:02:58.1]} 2. Nc3 {[%clk 0:03:00.9]}
2... c5 {[%clk 0:02:55.3]} 3. d5 {[%clk 0:03:00.5]} 3... d6 {[%clk 0:02:52.2]}
4. g3 {[%clk 0:03:00.9]} 4... g6 {[%clk 0:02:50.9]} 5. Bg2 {[%clk 0:03:01.1]}
5... Bg7 {[%clk 0:02:51.8]} 6. Nf3 {[%clk 0:03:01.3]} 6... O-O {[%clk
0:02:52.4]} 7. O-O {[%clk 0:03:02]} 7... e5 {[%clk 0:02:46.7]} 8. Nd2 {[%clk
0:02:59.3]} 8... a6 {[%clk 0:02:42.1]} 9. a4 {[%clk 0:02:59]} 9... Nbd7 {[%clk
0:02:42.2]} 10. a5 {[%clk 0:02:58.7]} 10... b5 {[%clk 0:02:40.7]} 11. axb6
{[%clk 0:02:58.4]} 11... Nxb6 {[%clk 0:02:40.7]} 12. e4 {[%clk 0:02:57.1]} 12...
a5 {[%clk 0:02:36.2]} 13. Re1 {[%clk 0:02:55.2]} 13... Bg4 {[%clk 0:02:28]} 14.
f3 {[%clk 0:02:55.3]} 14... Bc8 {[%clk 0:02:27.4]} 15. Na4 {[%clk 0:02:54.7]}
15... Nfd7 {[%clk 0:02:25.5]} 16. Nxb6 {[%clk 0:02:52]} 16... Nxb6 {[%clk
0:02:24.6]} 17. b3 {[%clk 0:02:40.4]} 17... a4 {[%clk 0:02:21.8]} 18. c4 {[%clk
0:02:36.2]} 18... Bd7 {[%clk 0:02:20.4]} 19. Ba3 {[%clk 0:02:13]} 19... axb3
{[%clk 0:02:06.2]} 20. Qxb3 {[%clk 0:02:13.9]} 20... Qc7 {[%clk 0:02:04.2]} 21.
Bb2 {[%clk 0:02:07.8]} 21... Bh6 {[%clk 0:02:02.9]} 22. Bc3 {[%clk 0:01:59.8]}
22... Rfb8 {[%clk 0:02:00.3]} 23. Rxa8 {[%clk 0:01:58.7]} 23... Nxa8 {[%clk
0:01:56.7]} 24. Qa2 {[%clk 0:01:54.3]} 24... Nb6 {[%clk 0:01:52.7]} 25. Bf1
{[%clk 0:01:50.2]} 25... Ra8 {[%clk 0:01:51.5]} 26. Qc2 {[%clk 0:01:45.9]} 26...
Ba4 {[%clk 0:01:36.2]} 27. Qd3 {[%clk 0:01:43.1]} 27... Bd7 {[%clk 0:01:29.1]}
28. Ra1 {[%clk 0:01:41.4]} 28... Rxa1 {[%clk 0:01:25.9]} 29. Bxa1 {[%clk
0:01:42.3]} 29... Qa7 {[%clk 0:01:26.3]} 30. Bb2 {[%clk 0:01:26.1]} 30... Qa2
{[%clk 0:01:25.2]} 31. Qb1 {[%clk 0:01:23.5]} 31... Be3+ {[%clk 0:01:22.7]} 32.
Kg2 {[%clk 0:01:12.2]} 32... Qxb1 {[%clk 0:01:10.8]} 33. Nxb1 {[%clk 0:01:12.1]}
33... Na4 {[%clk 0:01:03.8]} 34. Ba1 {[%clk 0:01:10.1]} 34... f5 {[%clk
0:00:58.2]} 35. Bd3 {[%clk 0:00:56.5]} 35... Bd4 {[%clk 0:00:55.1]} 36. Bxd4
{[%clk 0:00:54.9]} 36... cxd4 {[%clk 0:00:54.1]} 37. Kf2 {[%clk 0:00:52.2]}
37... Kf7 {[%clk 0:00:51]} 38. Ke2 {[%clk 0:00:51.2]} 38... Kf6 {[%clk
0:00:50.6]} 39. Kd2 {[%clk 0:00:51.1]} 39... Nc5 {[%clk 0:00:50.2]} 40. Na3
{[%clk 0:00:50.1]} 40... f4 {[%clk 0:00:39]} 41. Nc2 {[%clk 0:00:47.1]} 41... g5
{[%clk 0:00:37.6]} 42. g4 {[%clk 0:00:43.4]} 42... Ba4 {[%clk 0:00:37.3]} 43.
Nb4 {[%clk 0:00:37.5]} 43... Ke7 {[%clk 0:00:35.3]} 44. Bc2 {[%clk 0:00:32]}
44... Be8 {[%clk 0:00:32.8]} 45. h3 {[%clk 0:00:26]} 45... Kd8 {[%clk
0:00:32.6]} 46. Na2 {[%clk 0:00:14.9]} 46... Kc7 {[%clk 0:00:32.4]} 47. Nc1
{[%clk 0:00:15]} 47... Kb6 {[%clk 0:00:29.8]} 48. Ne2 {[%clk 0:00:14.9]} 48...
Ka5 {[%clk 0:00:28.8]} 49. Bd3 {[%clk 0:00:13.8]} 49... Kb4 {[%clk 0:00:28.6]}
50. Nc1 {[%clk 0:00:13.2]} 50... Ba4 {[%clk 0:00:28.2]} 51. Na2+ {[%clk
0:00:13.1]} 51... Ka3 {[%clk 0:00:27.3]} 52. Nc1 {[%clk 0:00:13.1]} 52... Kb2
{[%clk 0:00:27.1]} 53. Ne2 {[%clk 0:00:13]} 53... Bb3 {[%clk 0:00:26.4]} 54. Ng1
{[%clk 0:00:12.2]} 54... Ka3 {[%clk 0:00:25.8]} 55. Ne2 {[%clk 0:00:11.9]} 55...
Kb4 {[%clk 0:00:25.3]} 56. Nc1 {[%clk 0:00:11.7]} 56... Ba4 {[%clk 0:00:24.5]}
57. Na2+ {[%clk 0:00:11.2]} 57... Ka3 {[%clk 0:00:24.2]} 58. Nc1 {[%clk
0:00:11.7]} 58... Bb3 {[%clk 0:00:23.2]} 59. Ne2 {[%clk 0:00:10]} 59... Kb4
{[%clk 0:00:22.2]} 60. Nc1 {[%clk 0:00:10]} 60... Bxc4 {[%clk 0:00:22.2]} 61.
Bxc4 {[%clk 0:00:09.8]} 61... Kxc4 {[%clk 0:00:22]} 62. Kc2 {[%clk 0:00:09.8]}
62... d3+ {[%clk 0:00:21.5]} 63. Kd2 {[%clk 0:00:10.2]} 63... Kd4 {[%clk
0:00:21.3]} 64. Na2 {[%clk 0:00:05.3]} 64... Nb3+ {[%clk 0:00:21]} 65. Kd1
{[%clk 0:00:05.7]} 65... Ke3 {[%clk 0:00:20.6]} 66. Nb4 {[%clk 0:00:06.3]} 66...
d2 {[%clk 0:00:17]} 67. Nc6 {[%clk 0:00:02.5]} 67... Kxf3 {[%clk 0:00:16.7]} 68.
Nxe5+ {[%clk 0:00:02.8]} 68... dxe5 {[%clk 0:00:13.4]} 69. d6 {[%clk 0:00:03.3]}
69... Nc5 {[%clk 0:00:12.3]} 70. Kxd2 {[%clk 0:00:04]} 70... Kxe4 {[%clk
0:00:12.6]} 71. Kc3 {[%clk 0:00:04]} 71... Kd5 {[%clk 0:00:12.7]} 0-1

[Event "Early-Titled-Tuesday-Blitz-September-05-2023"]
[Site "Chess.com"]
[Date "2023.09.05"]
[Round "6"]
[White "PepeCuenca"]
[Black "ShahMatKanal"]
[Result "0-1"]
[WhiteElo "2685"]
[BlackElo "2441"]
[TimeControl "180+1"]
[EndTime "9:07:26 PDT"]
[Termination "ShahMatKanal won on time"]

1. e4 {[%clk 0:03:00.9]} 1... c6 {[%clk 0:02:59.9]} 2. Nc3 {[%clk 0:02:59.1]}
2... d5 {[%clk 0:03:00.3]} 3. Nf3 {[%clk 0:02:59.9]} 3... Bg4 {[%clk 0:03:00.2]}
4. h3 {[%clk 0:02:59.8]} 4... Bxf3 {[%clk 0:03:00.5]} 5. Qxf3 {[%clk 0:03:00.7]}
5... e6 {[%clk 0:02:55.6]} 6. d4 {[%clk 0:03:00.2]} 6... dxe4 {[%clk 0:02:53.8]}
7. Qxe4 {[%clk 0:02:59.9]} 7... Nf6 {[%clk 0:02:52.2]} 8. Qd3 {[%clk 0:03:00.3]}
8... Nbd7 {[%clk 0:02:51.1]} 9. g3 {[%clk 0:02:57.2]} 9... Be7 {[%clk
0:02:48.4]} 10. Bg2 {[%clk 0:02:57.2]} 10... O-O {[%clk 0:02:48.9]} 11. O-O
{[%clk 0:02:57.3]} 11... Qc7 {[%clk 0:02:46.8]} 12. Ne2 {[%clk 0:02:34.2]} 12...
c5 {[%clk 0:02:42.4]} 13. c3 {[%clk 0:02:26.1]} 13... cxd4 {[%clk 0:02:40.5]}
14. Nxd4 {[%clk 0:02:25.9]} 14... a6 {[%clk 0:02:34.4]} 15. Re1 {[%clk
0:02:21.8]} 15... Rfd8 {[%clk 0:02:25.3]} 16. Be3 {[%clk 0:02:05.1]} 16... Ne5
{[%clk 0:02:19.4]} 17. Qe2 {[%clk 0:02:00.8]} 17... Ng6 {[%clk 0:02:07.8]} 18.
a4 {[%clk 0:01:57.4]} 18... Nd5 {[%clk 0:02:03.7]} 19. Bd2 {[%clk 0:01:55.8]}
19... Bc5 {[%clk 0:01:59.3]} 20. Nb3 {[%clk 0:01:31.5]} 20... Ba7 {[%clk
0:01:58.9]} 21. Kh1 {[%clk 0:01:23]} 21... Nf6 {[%clk 0:01:48.2]} 22. a5 {[%clk
0:01:17.9]} 22... h5 {[%clk 0:01:44]} 23. Bg5 {[%clk 0:01:16.5]} 23... h4 {[%clk
0:01:34.5]} 24. Qf3 {[%clk 0:01:04.8]} 24... hxg3 {[%clk 0:01:30.5]} 25. fxg3
{[%clk 0:01:04.8]} 25... Bb8 {[%clk 0:01:12.6]} 26. Nd4 {[%clk 0:00:52.9]} 26...
Rd5 {[%clk 0:01:08.8]} 27. Be3 {[%clk 0:00:44.4]} 27... Nh4 {[%clk 0:01:05.2]}
28. Qf4 {[%clk 0:00:37.2]} 28... Nxg2 {[%clk 0:01:03]} 29. Qxc7 {[%clk
0:00:36.3]} 29... Bxc7 {[%clk 0:01:03.9]} 30. Kxg2 {[%clk 0:00:36.9]} 30... Rxa5
{[%clk 0:01:01.1]} 31. Rxa5 {[%clk 0:00:30.4]} 31... Bxa5 {[%clk 0:01:02]} 32.
Bg5 {[%clk 0:00:31]} 32... Nd5 {[%clk 0:01:00.5]} 33. h4 {[%clk 0:00:30.4]}
33... Rc8 {[%clk 0:00:58.8]} 34. h5 {[%clk 0:00:29.3]} 34... Bd8 {[%clk
0:00:57.6]} 35. Bd2 {[%clk 0:00:28.9]} 35... Bf6 {[%clk 0:00:57.6]} 36. Nf3
{[%clk 0:00:25.6]} 36... Rd8 {[%clk 0:00:57.4]} 37. g4 {[%clk 0:00:25]} 37...
Nb6 {[%clk 0:00:57]} 38. g5 {[%clk 0:00:24.2]} 38... Be7 {[%clk 0:00:56.5]} 39.
Re2 {[%clk 0:00:24.6]} 39... Nc4 {[%clk 0:00:55.8]} 40. Bf4 {[%clk 0:00:22.9]}
40... Rd5 {[%clk 0:00:53.9]} 41. g6 {[%clk 0:00:19]} 41... Rxh5 {[%clk
0:00:52.8]} 42. gxf7+ {[%clk 0:00:19.2]} 42... Kxf7 {[%clk 0:00:53.7]} 43. b3
{[%clk 0:00:16]} 43... Nb6 {[%clk 0:00:49.7]} 44. c4 {[%clk 0:00:14.6]} 44...
Nd7 {[%clk 0:00:48.7]} 45. Rd2 {[%clk 0:00:14.2]} 45... Ke8 {[%clk 0:00:49]} 46.
Bg3 {[%clk 0:00:12.9]} 46... b5 {[%clk 0:00:47.1]} 47. Nd4 {[%clk 0:00:11.4]}
47... bxc4 {[%clk 0:00:46.6]} 48. bxc4 {[%clk 0:00:12.3]} 48... Nc5 {[%clk
0:00:46]} 49. Rb2 {[%clk 0:00:08.7]} 49... Rg5 {[%clk 0:00:45.7]} 50. Kf3 {[%clk
0:00:08]} 50... Kf7 {[%clk 0:00:41.8]} 51. Rb6 {[%clk 0:00:06.1]} 51... a5
{[%clk 0:00:40.9]} 52. Nc6 {[%clk 0:00:05.2]} 52... Rf5+ {[%clk 0:00:37.8]} 53.
Ke2 {[%clk 0:00:05]} 53... Ne4 {[%clk 0:00:33.7]} 54. Be1 {[%clk 0:00:03.1]}
54... Bc5 {[%clk 0:00:31.8]} 55. Rb7+ {[%clk 0:00:02.5]} 55... Kg6 {[%clk
0:00:31.4]} 56. Rb5 {[%clk 0:00:02.1]} 56... a4 {[%clk 0:00:25.2]} 57. Ra5
{[%clk 0:00:02.4]} 57... a3 {[%clk 0:00:25.1]} 58. Kd3 {[%clk 0:00:02.8]} 58...
Nf2+ {[%clk 0:00:21.7]} 59. Kc2 {[%clk 0:00:02.5]} 59... Bf8 {[%clk 0:00:18.6]}
60. Ra6 {[%clk 0:00:02.1]} 60... Kf7 {[%clk 0:00:16.8]} 61. Ra7+ {[%clk
0:00:02.3]} 61... Kg8 {[%clk 0:00:16.8]} 62. Bc3 {[%clk 0:00:03.2]} 62... Ne4
{[%clk 0:00:16]} 63. Ra8 {[%clk 0:00:03.6]} 63... Nxc3 {[%clk 0:00:15.8]} 64.
Ne7+ {[%clk 0:00:04]} 64... Kf7 {[%clk 0:00:15.3]} 65. Nxf5 {[%clk 0:00:04.9]}
65... exf5 {[%clk 0:00:13.1]} 66. Kxc3 {[%clk 0:00:05.5]} 66... g5 {[%clk
0:00:10.5]} 67. Kd4 {[%clk 0:00:06.1]} 67... g4 {[%clk 0:00:07]} 68. Ke3 {[%clk
0:00:02.3]} 68... Bd6 {[%clk 0:00:06.7]} 69. Ra6 {[%clk 0:00:01.7]} 69... Ke7
{[%clk 0:00:06]} 0-1

[Event "Early-Titled-Tuesday-Blitz-September-05-2023"]
[Site "Chess.com"]
[Date "2023.09.05"]
[Round "6"]
[White "GMG"]
[Black "Herzog2012"]
[Result "1/2-1/2"]
[WhiteElo "2787"]
[BlackElo "2472"]
[TimeControl "180+1"]
[EndTime "9:07:28 PDT"]
[Termination "Game drawn by stalemate"]

1. d4 {[%clk 0:03:00.9]} 1... Nf6 {[%clk 0:02:59.7]} 2. c4 {[%clk 0:03:00.2]}
2... e6 {[%clk 0:02:59.7]} 3. Nf3 {[%clk 0:03:00.5]} 3... b6 {[%clk 0:02:59.1]}
4. g3 {[%clk 0:03:00.9]} 4... Ba6 {[%clk 0:02:58.7]} 5. Qa4 {[%clk 0:03:00.3]}
5... Bb7 {[%clk 0:02:56.4]} 6. Bg2 {[%clk 0:03:00.6]} 6... Ke7 {[%clk
0:02:49.2]} 7. O-O {[%clk 0:02:57]} 7... g6 {[%clk 0:02:40.9]} 8. Nc3 {[%clk
0:02:49.4]} 8... Bg7 {[%clk 0:02:37.2]} 9. d5 {[%clk 0:02:47.4]} 9... d6 {[%clk
0:02:19.5]} 10. e4 {[%clk 0:02:36.4]} 10... Nbd7 {[%clk 0:02:15.5]} 11. Nd4
{[%clk 0:02:32.9]} 11... Nc5 {[%clk 0:02:00.4]} 12. Qd1 {[%clk 0:02:31.6]} 12...
exd5 {[%clk 0:01:55.4]} 13. cxd5 {[%clk 0:02:20.1]} 13... Re8 {[%clk 0:01:52.3]}
14. b4 {[%clk 0:02:17.6]} 14... Ncd7 {[%clk 0:01:49.4]} 15. Nc6+ {[%clk
0:02:12.2]} 15... Bxc6 {[%clk 0:01:49.1]} 16. dxc6 {[%clk 0:02:13.1]} 16... Nf8
{[%clk 0:01:14.7]} 17. Bb2 {[%clk 0:02:00.9]} 17... Ne6 {[%clk 0:01:08.1]} 18.
Qd2 {[%clk 0:01:52.7]} 18... Kf8 {[%clk 0:01:06.5]} 19. Rad1 {[%clk 0:01:51]}
19... Ng4 {[%clk 0:01:00]} 20. h3 {[%clk 0:01:46.2]} 20... Ne5 {[%clk
0:00:50.8]} 21. Qe2 {[%clk 0:01:46.5]} 21... Nxc6 {[%clk 0:00:49.2]} 22. Nd5
{[%clk 0:01:28.8]} 22... Ncd4 {[%clk 0:00:41.4]} 23. Qd2 {[%clk 0:01:21.2]}
23... c6 {[%clk 0:00:38.4]} 24. Ne3 {[%clk 0:01:21.3]} 24... a5 {[%clk
0:00:36.4]} 25. a3 {[%clk 0:01:05.6]} 25... b5 {[%clk 0:00:28.3]} 26. f4 {[%clk
0:01:03.2]} 26... axb4 {[%clk 0:00:27.9]} 27. f5 {[%clk 0:00:59.9]} 27... Nb3
{[%clk 0:00:14.8]} 28. Bxg7+ {[%clk 0:00:54.6]} 28... Nxg7 {[%clk 0:00:10.8]}
29. Qxb4 {[%clk 0:00:51]} 29... Nc5 {[%clk 0:00:08.5]} 30. fxg6 {[%clk
0:00:41.7]} 30... hxg6 {[%clk 0:00:09.4]} 31. Ng4 {[%clk 0:00:32.6]} 31... Ra4
{[%clk 0:00:08.9]} 32. Qc3 {[%clk 0:00:29]} 32... Nxe4 {[%clk 0:00:06.1]} 33.
Qxc6 {[%clk 0:00:26]} 33... Nf5 {[%clk 0:00:03.7]} 34. Qxb5 {[%clk 0:00:18.1]}
34... Rxa3 {[%clk 0:00:03.8]} 35. Qb4 {[%clk 0:00:13.5]} 35... Rxg3 {[%clk
0:00:02.9]} 36. Kh2 {[%clk 0:00:13.6]} 36... Rxg2+ {[%clk 0:00:02.9]} 37. Kxg2
{[%clk 0:00:13.6]} 37... Qh4 {[%clk 0:00:02.7]} 38. Rd3 {[%clk 0:00:10.2]} 38...
Neg3 {[%clk 0:00:02.4]} 39. Rf2 {[%clk 0:00:08.8]} 39... Re4 {[%clk 0:00:02.5]}
40. Qb8+ {[%clk 0:00:08.1]} 40... Kg7 {[%clk 0:00:02.7]} 41. Qb2+ {[%clk
0:00:08.6]} 41... Kf8 {[%clk 0:00:02.3]} 42. Rb3 {[%clk 0:00:07.6]} 42... Rxg4
{[%clk 0:00:02]} 43. Rb8+ {[%clk 0:00:07.1]} 43... Ke7 {[%clk 0:00:02.6]} 44.
Rb7+ {[%clk 0:00:06.9]} 44... Kf8 {[%clk 0:00:02.5]} 45. Rb8+ {[%clk 0:00:06.8]}
45... Ke7 {[%clk 0:00:03]} 46. Re2+ {[%clk 0:00:06.4]} 46... Re4 {[%clk
0:00:02.8]} 47. Rb7+ {[%clk 0:00:04.9]} 47... Ke6 {[%clk 0:00:03.4]} 48. Qb3+
{[%clk 0:00:04.3]} 48... Kf6 {[%clk 0:00:03.9]} 49. Qc3+ {[%clk 0:00:04.6]}
49... Kg5 {[%clk 0:00:04.3]} 50. Qd2+ {[%clk 0:00:05.1]} 50... Qf4 {[%clk
0:00:04.2]} 51. Rxf7 {[%clk 0:00:03.8]} 51... Rxe2+ {[%clk 0:00:03.4]} 52. Kg1
{[%clk 0:00:02.7]} 52... Qxd2 {[%clk 0:00:02.7]} 53. h4+ {[%clk 0:00:02.6]}
53... Kxh4 {[%clk 0:00:02.8]} 54. Rh7+ {[%clk 0:00:02.5]} 54... Kg5 {[%clk
0:00:02.9]} 55. Rh5+ {[%clk 0:00:02.9]} 55... Kf6 {[%clk 0:00:03.4]} 56. Rxf5+
{[%clk 0:00:03.2]} 56... Ke6 {[%clk 0:00:04]} 57. Rf6+ {[%clk 0:00:03]} 57...
Kd7 {[%clk 0:00:04.3]} 58. Rxd6+ {[%clk 0:00:03]} 58... Kc7 {[%clk 0:00:04.2]}
59. Rc6+ {[%clk 0:00:03.4]} 59... Kd7 {[%clk 0:00:04.7]} 60. Rd6+ {[%clk
0:00:03.8]} 60... Ke7 {[%clk 0:00:05.2]} 61. Re6+ {[%clk 0:00:04.3]} 61... Kf7
{[%clk 0:00:05.2]} 62. Rf6+ {[%clk 0:00:04.9]} 62... Kg7 {[%clk 0:00:04.9]} 63.
Rxg6+ {[%clk 0:00:05.4]} 63... Kf7 {[%clk 0:00:05.3]} 64. Rf6+ {[%clk
0:00:05.9]} 64... Ke7 {[%clk 0:00:03.8]} 65. Re6+ {[%clk 0:00:06.4]} 65... Kd7
{[%clk 0:00:04.2]} 66. Rd6+ {[%clk 0:00:06.9]} 66... Kc7 {[%clk 0:00:04.2]} 67.
Rc6+ {[%clk 0:00:07.4]} 67... Kb7 {[%clk 0:00:03.5]} 68. Rb6+ {[%clk 0:00:07.9]}
68... Ka7 {[%clk 0:00:04]} 69. Ra6+ {[%clk 0:00:08.3]} 69... Kxa6 {[%clk
0:00:04.9]} 1/2-1/2